Workbook

Sheet 1 неделя
B3: 12-дневное меню обучачающихся 1-4 классов МБОУ "Татарско-Баганинская средняя общеобразовательная школа" Чистопольского муниципального района Республики Татарстан ( 1-ая неделя)
A5: № рецептуры | B5: Наименование блюд | G5: Выход | H5: Белки, г | I5: Жиры, г | K5: Углеводы, г | M5: Калорийность, ккал | O5: Витамин B1, мг | P5: Витамин С, мг | R5: Витамин А, мг | T5: Витамин Е, мг | V5: Ca, мг | W5: P, мг | X5: Mg, мг | Y5: Fe, мг
B6: 1-ая неделя
B7: 1 день
A8: № 338 Сбор.рец. На прод-ию для обуч. Во всех образ.учреж-Дели 2015 | B8: ПЛОДЫ И ЯГОДЫ СВЕЖИЕ (ЯБЛОКИ) | G8: 100 | H8: 0.400 | I8: 0.400 | K8: 7.350 | M8: 47 | O8: 0.030 | P8: 8.000 | R8: - | T8: 0.100 | V8: 16.000 | W8: 11.000 | X8: 9.000 | Y8: 0.030
A9: № 266 Сбор.рец. На прод-ию для обуч. Во всех образ.учреж-Дели 2015 | B9: МЯСО ТУШЕНОЕ | G9: 50\50 | H9: 8.320 | I9: 7.150 | M9: 200 | O9: 0.040 | T9: 1.343 | V9: 11.010 | W9: 127.020 | X9: 6.000 | Y9: 1.100
A10: № 303 Сбор.рец. На прод-ию для обуч. Во всех образ.учреж-Дели 2015 | B10: КАША ГРЕЧНЕВАЯ РАССЫПЧАТАЯ С МАСЛОМ | G10: 150 | H10: 6.662 | I10: 9.024 | K10: 34.000 | M10: 170 | O10: 0.292 | P10: - | T10: 0.518 | V10: 37.352 | W10: 170.553 | X10: 44.550 | Y10: 1.101
A11: № 376 Сбор.рец. На прод-ию для обуч. Во всех образ.учреж-Дели 2015 | B11: ЧАЙ С САХАРОМ | G11: 200/15 | H11: 0.53 | I11: - | K11: 9.470 | M11: 40 | O11: - | P11: 0.27 | R11: - | T11: - | V11: 13.600 | W11: 22.13 | X11: 11.73 | Y11: 0.100
B12: ХЛЕБ ПШЕНИНИЧНЫЙ | G12: 50 | H12: 2.280 | I12: 0.240 | K12: 14.760 | M12: 71 | O12: 0.033 | P12: - | R12: - | T12: 0.330 | V12: 6.000 | W12: 19.500 | X12: 4.200 | Y12: 0.330
B13: Итого: | H13: =SUM(H8:H12) -> 18.192 | I13: =SUM(I8:I12) -> 16.814 | K13: =SUM(K8:K12) -> 65.580 | M13: =SUM(M8:M12) -> 528 | O13: =SUM(O8:O12) -> 0.395 | P13: =SUM(P8:P12) -> 8.270 | R13: =SUM(R10:R12) -> 0 | T13: =SUM(T8:T12) -> 2.291 | V13: =SUM(V8:V12) -> 83.962 | W13: =SUM(W8:W12) -> 350.203 | X13: =SUM(X8:X12) -> 75.480 | Y13: =SUM(Y8:Y12) -> 2.661
B14: 2 день
A15: №45 Сбор.рец. На прод-ию для обуч. Во всех образ.учреж-Дели 2015 | B15: САЛАТ ИЗ СВЕКЛЫ ОТВАРНОЙ | G15: 60 | H15: 0.780 | I15: 1.940 | K15: 3.870 | M15: 36 | O15: 0.013 | P15: 6.250 | R15: - | T15: 0.060 | V15: 16.980 | W15: 46.980 | X15: 6.050 | Y15: 0.270 | AI15: 2 ВАРИАНТ (НОЯБРЬ, ДЕКАБРЬ)
A16: № 289 Сбор.рец. На прод-ию для обуч. Во всех образ.учреж-Дели 2015 | B16: ПЛОВ ИЗ ГОВЯДИНЫ | G16: 50/150 | H16: 12.300 | I16: 17.660 | K16: 29.850 | M16: 313 | O16: 0.201 | P16: 8.076 | R16: 0.180 | T16: 2.100 | V16: 57.660 | W16: 201.911 | X16: 26.394 | Y16: 0.111
A17: № 382 Сбор.рец. На прод-ию для обуч. Во всех образ.учреж-Дели 2015 | B17: КАКАО С МОЛОКОМ | G17: 200 | H17: 3.780 | I17: 0.670 | K17: 26.000 | M17: 125 | O17: 0.020 | P17: 1.330 | T17: 0.012 | V17: 133.330 | W17: 111.110 | X17: 25.560 | Y17: 2.000
B18: ХЛЕБ ПШЕНИНИЧНЫЙ | G18: 50 | H18: 2.280 | I18: 0.240 | K18: 14.760 | M18: 71 | O18: 0.033 | P18: - | R18: - | T18: 0.330 | V18: 6.000 | W18: 19.500 | X18: 4.200 | Y18: 0.330
B19: Итого: | H19: =SUM(H15:H18) -> 19.140 | I19: =SUM(I15:J18) -> 20.510 | K19: =SUM(K15:L18) -> 74.480 | M19: =SUM(M15:N18) -> 545 | O19: =SUM(O15:O18) -> 0.267 | P19: =SUM(P15:P18) -> 15.656 | R19: =SUM(R16:R18) -> 0.2 | T19: =SUM(T15:T18) -> 2.502 | V19: =SUM(V15:V18) -> 213.97 | W19: =SUM(W15:W18) -> 379.501 | X19: =SUM(X15:X18) -> 62.204 | Y19: =SUM(Y15:Y18) -> 2.711
B20: 3 день
A21: № 338 Сбор.рец. На прод-ию для обуч. Во всех образ.учреж-Дели 2015 | B21: ПЛОДЫ И ЯГОДЫ СВЕЖИЕ (АПЕЛЬСИНЫ) | G21: 100 | H21: 0.400 | I21: 0.400 | K21: 7.350 | M21: 47 | O21: 0.030 | P21: 8.000 | R21: - | T21: 0.100 | V21: 16.000 | W21: 11.000 | X21: 9.000 | Y21: 0.030
A22: № 256 Сбор.рец. На прод-ию для обуч. Во всех образ.учреж-Дели 2015 | B22: ФРИКАДЕЛЬКИ В СОУСЕ | G22: 70\50 | H22: 10.500 | I22: 11.030 | K22: 3.184 | M22: 196 | O22: 0.140 | P22: 3.890 | T22: 0.363 | V22: 66.806 | W22: 215.174 | X22: 30.164 | Y22: 1.430
A23: № 203 Сбор.рец. На прод-ию для обуч. Во всех образ.учреж-Дели 2015 | B23: МАКАРОННЫЕ ИЗДЕЛИЯ ОТВАРНЫЕ С МАСЛОМ | G23: 150/5 | H23: 5.100 | I23: 4.468 | K23: 28.500 | M23: 187 | O23: 0.087 | P23: - | R23: 0.100 | T23: 0.816 | V23: 16.457 | W23: 57.009 | X23: 8.479 | Y23: 0.869
A24: № 376 Сбор.рец. На прод-ию для обуч. Во всех образ.учреж-Дели 2015 | B24: КОМПОТ ИЗ СУХОФРУКТОВ | G24: 200 | H24: 0.53 | I24: - | K24: 9.470 | M24: 40 | O24: - | P24: 0.27 | R24: - | T24: - | V24: 13.600 | W24: 22.13 | X24: 11.73 | Y24: 0.100
B25: ХЛЕБ ПШЕНИНИЧНЫЙ | G25: 50 | H25: 2.280 | I25: 0.240 | K25: 14.760 | M25: 71 | O25: 0.033 | P25: - | R25: - | T25: 0.330 | V25: 6.000 | W25: 19.500 | X25: 4.200 | Y25: 0.330
B26: Итого: | H26: =SUM(H21:H25) -> 18.810 | I26: =SUM(I21:J25) -> 16.138 | K26: =SUM(K21:L25) -> 63.264 | M26: =SUM(M21:N25) -> 541 | O26: =SUM(O21:O25) -> 0.290 | P26: =SUM(P21:P25) -> 12.16 | R26: =SUM(R23:R25) -> 0.1 | T26: =SUM(T21:T25) -> 1.61 | V26: =SUM(V21:V25) -> 118.863 | W26: =SUM(W21:W25) -> 324.81 | X26: =SUM(X21:X25) -> 63.573 | Y26: =SUM(Y21:Y25) -> 2.759
B27: 4 день
A28: № 338 Сбор.рец. На прод-ию для обуч. Во всех образ.учреж-Дели 2015 | B28: САЛАТ ИЗ СВЕКЛЫ ОТВАРНОЙ | G28: 60 | H28: 0.400 | I28: 0.400 | K28: 7.350 | M28: 47 | O28: 0.030 | P28: 8.000 | R28: - | T28: 0.100 | V28: 16.000 | W28: 11.000 | X28: 9.000 | Y28: 0.030
A29: № 295 Сбор.рец. На прод-ию для обуч. Во всех образ.учреж-Дели 2015 | B29: КОТЛЕТЫ РЫБНЫЕ | G29: 100 | H29: 10.240 | I29: 5.370 | K29: 19.360 | N29: 159 | O29: 0.080 | P29: 0.000 | T29: - | V29: 89.430 | W29: 158.000 | X29: 0.640 | Y29: 0.300
A30: № 312 Сбор.рец. На прод-ию для обуч. Во всех образ.учреж-Дели -2015 | B30: ПЮРЕ КАРТОФЕЛЬНОЕ | G30: 150 | H30: 3.090 | I30: 8.282 | K30: 22 | M30: 172 | O30: 0.164 | P30: 7.943 | R30: 0.080 | T30: 3.000 | V30: 47.805 | W30: 98.835 | X30: 8.000 | Y30: 0.000
A31: № 376 Сбор.рец. На прод-ию для обуч. Во всех образ.учреж-Дели 2015 | B31: КАКАО С МОЛОКОМ | G31: 200 | H31: 3.780 | I31: 0.670 | K31: 26.000 | M31: 125 | O31: 0.020 | P31: 1.330 | T31: 0.012 | V31: 133.330 | W31: 111.110 | X31: 25.560 | Y31: 2.000
B32: ХЛЕБ ПШЕНИНИЧНЫЙ | G32: 50 | H32: 2.280 | I32: 0.240 | K32: 14.760 | M32: 71 | O32: 0.033 | P32: - | R32: - | T32: 0.330 | V32: 6.000 | W32: 19.500 | X32: 4.200 | Y32: 0.330
B33: Итого: | H33: =SUM(H28:H32) -> 19.790 | I33: =SUM(I28:I32) -> 14.962 | K33: =SUM(K28:K32) -> 89.537 | M33: =M28+N29+M30+M31+M32+#REF! ->  | O33: =SUM(O28:O32) -> 0.33 | P33: 15.523 | R33: =SUM(R29:R32) -> 0.1 | T33: 3.100 | V33: =SUM(V28:V32) -> 292.565 | W33: =SUM(W28:W32) -> 398.445 | X33: 65.900 | Y33: =SUM(Y28:Y32) -> 2.660
B34: 5 день
A35: № 338 Сбор.рец. На прод-ию для обуч. Во всех образ.учреж-Дели 2015 | B35: ПЛОДЫ И ЯГОДЫ СВЕЖИЕ (АПЕЛЬСИНЫ) | G35: 100 | H35: 0.400 | I35: 0.400 | K35: 7.350 | M35: 47 | O35: 0.030 | P35: 8.000 | R35: - | T35: 0.100 | V35: 16.000 | W35: 11.000 | X35: 9.000 | Y35: 0.030
A36: № 268 Сбор.рец. На прод-ию для обуч. Во всех образ.учреж-Дели 2015 | B36: КОТЛЕТЫ ИЗ ПТИЦЫ | G36: 100 | H36: 9.660 | I36: 12.412 | K36: 9.450 | M36: 182 | O36: 0.166 | P36: 3.861 | R36: - | T36: 1.384 | V36: 54.974 | W36: 155.026 | X36: 21.930 | Y36: 1.678
A37: № 304 Сбор.рец. На прод-ию для обуч. Во всех образ.учреж-Дели 2015 | B37: РИС ОТВАРНОЙ | G37: 150 | H37: 3.834 | I37: 5.434 | K37: 29.600 | M37: 210 | O37: 0.044 | P37: - | R37: 0.180 | T37: 0.284 | V37: 11.460 | W37: 84.150 | X37: 13.330 | Y37: 0.010
A38: № 376 Сбор.рец. На прод-ию для обуч. Во всех образ.учреж-Дели 2015 | B38: ЧАЙ С САХАРОМ | G38: 200/15 | H38: 0.53 | I38: - | K38: 9.470 | M38: 40 | O38: - | P38: 0.27 | R38: - | T38: - | V38: 13.600 | W38: 22.13 | X38: 11.73 | Y38: 0.100
B39: ХЛЕБ ПШЕНИНИЧНЫЙ | G39: 50 | H39: 2.280 | I39: 0.240 | K39: 14.760 | M39: 71 | O39: 0.033 | P39: - | R39: - | T39: 0.330 | V39: 6.000 | W39: 19.500 | X39: 4.200 | Y39: 0.330
B40: Итого: | H40: =SUM(H35:H39) -> 16.704 | I40: =SUM(I35:I39) -> 18.486 | K40: =SUM(K35:K39) -> 70.630 | M40: =SUM(M35:M39) -> 550 | O40: =SUM(O35:O39) -> 0.3 | P40: =SUM(P35:P39) -> 12.131 | R40: =SUM(R37:R39) -> 0.18 | T40: =SUM(T35:T39) -> 2.098 | V40: =SUM(V35:V39) -> 102.034 | W40: =SUM(W35:W39) -> 291.806 | X40: =SUM(X35:X39) -> 60.19 | Y40: =SUM(Y35:Y39) -> 2.148
B41: 6 день
A42: № 338 Сбор.рец. На прод-ию для обуч. Во всех образ.учреж-Дели 2015 | B42: ПЛОДЫ И ЯГОДЫ СВЕЖИЕ (ГРУША) | G42: 100 | H42: 0.400 | I42: 0.400 | K42: 7.350 | M42: 47 | O42: 0.030 | P42: 8.000 | R42: - | T42: 0.100 | V42: 16.000 | W42: 11.000 | X42: 9.000 | Y42: 0.030
A43: № 291 Сбор.рец. На прод-ию для обуч. Во всех образ.учреж-Дели -2015 | B43: РАГУ ИЗ ПТИЦЫ | G43: 50/150 | H43: 14.510 | I43: 14.710 | K43: 28.340 | M43: 364 | O43: 0.210 | P43: 4.900 | R43: 0.100 | T43: 1.200 | V43: 83.070 | W43: 273.000 | X43: 40.450 | Y43: 1.900
A44: № 376 Сбор.рец. На прод-ию для обуч. Во всех образ.учреж-Дели 2015 | B44: ЧАЙ С САХАРОМ | G44: 200/15 | H44: 0.53 | I44: - | K44: 9.470 | M44: 40 | O44: - | P44: 0.27 | R44: - | T44: - | V44: 13.600 | W44: 22.13 | X44: 11.73 | Y44: 0.100
B45: ХЛЕБ ПШЕНИНИЧНЫЙ | G45: 50 | H45: 2.280 | I45: 0.240 | K45: 14.760 | M45: 71 | O45: 0.033 | P45: - | R45: - | T45: 0.330 | V45: 6.000 | W45: 19.500 | X45: 4.200 | Y45: 0.330
B46: Итого: | H46: =SUM(H42:H45) -> 17.720 | I46: =SUM(I42:I45) -> 15.350 | K46: =SUM(K42:K45) -> 59.920 | M46: =SUM(M42:M45) -> 522 | O46: =SUM(O42:O45) -> 0.273 | P46: =SUM(P42:P45) -> 13.170 | R46: =SUM(R43:R45) -> 0.100 | T46: =SUM(T42:T45) -> 2 | V46: =SUM(V42:V45) -> 118.670 | W46: =SUM(W42:W45) -> 325.630 | X46: =SUM(X42:X45) -> 65.380 | Y46: =SUM(Y42:Y45) -> 2.360

Sheet 2 неделя
B2: 12-дневное меню обучачающихся 1-4 классов МБОУ "Татарско-Баганинская средняя общеобразовательная школа" Чистопольского муниципального района Республики Татарстан ( 2-ая неделя)
B3: 1-4 кл
A4: № РЕЦЕПТУР | B4: Наименование блюд | G4: Выход | H4: Белки, г | I4: Жиры, г | K4: Углеводы, г | M4: Калорийность, ккал | O4: Витамин B1, мг | P4: Витамин С, мг | R4: Витамин А, мг | T4: Витамин Е, мг | V4: Ca, мг | W4: P, мг | X4: Mg, мг | Y4: Fe, мг
B5: 2-ая неделя
B6: 1 день
A7: № 338 Сбор.рец. На прод-ию для обуч. Во всех образ.учреж-Дели 2015 | B7: ПЛОДЫ И ЯГОДЫ СВЕЖИЕ (АПЕЛЬСИНЫ) | G7: 100 | H7: 0.400 | I7: 0.400 | K7: 7.350 | M7: 47 | O7: 0.030 | P7: 8.000 | R7: - | T7: 0.200 | V7: 46.000 | W7: 11.000 | X7: 0.100 | Y7: 0.000
A8: № 280 Сбор.рец. На прод-ию для обуч. Во всех образ.учреж-Дели -2015 | B8: ГУЛЯШ ИЗ ГОВЯДИНЫ | G8: 60/60 | H8: 8.330 | I8: 7.743 | K8: 3.194 | M8: 175 | O8: 0.030 | P8: 0.650 | R8: 0.1 | T8: 1.256 | V8: 100.530 | W8: 110.071 | X8: 0.077 | Y8: 1.000
A9: № 171 Сбор.рец. На прод-ию для обуч. Во всех образ.учреж-Дели 2015 | B9: ПЮРЕ КАРТОФЕЛЬНОЕ | G9: 150 | H9: 3.090 | I9: 8.282 | K9: 22 | M9: 172 | O9: 0.164 | P9: 7.943 | R9: 0.080 | T9: 3.000 | V9: 47.805 | W9: 98.835 | X9: 8.000 | Y9: 0.000
A10: № 376 Сбор.рец. На прод-ию для обуч. Во всех образ.учреж-Дели 2015 | B10: ЧАЙ С САХАРОМ | G10: 200/15 | H10: 0.53 | I10: - | K10: 9.470 | M10: 40 | O10: - | P10: 0.27 | R10: - | T10: - | V10: 13.600 | W10: 22.13 | X10: 11.73 | Y10: 0.100
B11: ХЛЕБ ПШЕНИНИЧНЫЙ | G11: 50 | H11: 2.280 | I11: 0.240 | K11: 14.760 | M11: 71 | O11: 0.033 | P11: - | R11: - | T11: 0.330 | V11: 6.000 | W11: 19.500 | X11: 4.200 | Y11: 0.330
B12: Итого: | H12: =SUM(H7:H11) -> 14.630 | I12: =SUM(I7:I11) -> 16.665 | K12: =SUM(K7:K11) -> 56.841 | M12: =SUM(M7:M11) -> 505 | O12: =SUM(O7:O11) -> 0.26 | P12: =SUM(P7:P11) -> 16.863 | R12: =SUM(R8:R11) -> 0.18 | T12: =SUM(T7:T11) -> 4.786 | V12: =SUM(V7:V11) -> 213.935 | W12: =SUM(W7:W11) -> 261.536 | X12: =SUM(X7:X11) -> 24.1 | Y12: =SUM(Y7:Y11) -> 1.43
B13: 2 день
A14: № 52 Сбор.рец. На прод-ию для обуч. Во всех образ.учреж-Дели 2015 | B14: САЛАТ ИЗ СВЕКЛЫ ОТВАРНОЙ | G14: 60 | H14: 0.855 | I14: 3.653 | K14: 11.580 | M14: 56 | O14: 0.011 | P14: 7.700 | T14: 0.641 | V14: 121.090 | W14: 84.582 | X14: 12.540 | Y14: 0.198
A15: № 291 Сбор.рец. На прод-ию для обуч. Во всех образ.учреж-Дели -2015 | B15: ПЛОВ ИЗ ПТИЦЫ | G15: 50/150 | H15: 14.510 | I15: 14.710 | K15: 28.340 | M15: 364 | O15: 0.210 | P15: 4.900 | R15: 0.100 | T15: 1.200 | V15: 83.070 | W15: 273.000 | X15: 40.450 | Y15: 1.900
A16: № 376 Сбор.рец. На прод-ию для обуч. Во всех образ.учреж-Дели 2015 | B16: КАКАО С МОЛОКОМ | G16: 200 | H16: 3.780 | I16: 0.670 | K16: 26.000 | M16: 125 | O16: 0.020 | P16: 1.330 | T16: 0.012 | V16: 133.330 | W16: 111.110 | X16: 25.560 | Y16: 2.000
B17: ХЛЕБ ПШЕНИНИЧНЫЙ | G17: 50 | H17: 2.280 | I17: 0.240 | K17: 14.760 | M17: 71 | O17: 0.033 | P17: - | R17: - | T17: 0.330 | V17: 6.000 | W17: 19.500 | X17: 4.200 | Y17: 0.330
B18: Итого: | H18: =SUM(H14:H17) -> 21.425 | I18: =SUM(I14:I17) -> 19.273 | K18: =SUM(K14:K17) -> 80.680 | M18: =SUM(M14:M17) -> 616 | O18: =SUM(O14:O17) -> 0.27 | P18: =SUM(P14:P17) -> 13.9 | R18: =SUM(R15:R17) -> 0.1 | T18: =SUM(T14:T17) -> 2.183 | V18: =SUM(V14:V17) -> 343.49 | W18: =SUM(W14:W17) -> 488.19 | X18: =SUM(X14:X17) -> 82.75 | Y18: =SUM(Y14:Y17) -> 4.428
B19: 3 день
A20: № 338 Сбор.рец. На прод-ию для обуч. Во всех образ.учреж-Дели 2015 | B20: ПЛОДЫ И ЯГОДЫ СВЕЖИЕ (ЯБЛОКИ) | G20: 100 | H20: 0.400 | I20: 0.400 | K20: 7.350 | M20: 47 | O20: 0.030 | P20: 8.000 | R20: - | T20: 0.200 | V20: 46.000 | W20: 11.000 | X20: 0.100 | Y20: 0.000
A21: № 234 Сбор.рец. На прод-ию для обуч. Во всех образ.учреж-Дели -2015 | B21: КОТЛЕТЫ РЫБНЫЕ | G21: 100 | H21: 10.240 | I21: 5.370 | K21: 19.360 | N21: 159 | O21: 0.080 | P21: 0.000 | T21: - | V21: 89.430 | W21: 158.000 | X21: 0.640 | Y21: 0.300
A22: № 312 Сбор.рец. На прод-ию для обуч. Во всех образ.учреж-Дели -2015 | B22: КАША ГРЕЧНЕВАЯ РАССЫПЧАТАЯ С МАСЛОМ | G22: 150 | H22: 6.662 | I22: 9.024 | K22: 34.000 | M22: 170 | O22: 0.292 | P22: - | T22: 0.518 | V22: 37.352 | W22: 170.553 | X22: 44.550 | Y22: 1.101
A23: № 379 Сбор.рец. На прод-ию для обуч. Во всех образ.учреж-Дели 2015 | B23: ЧАЙ С САХАРОМ | G23: 200/15 | H23: 0.53 | I23: - | K23: 9.470 | M23: 40 | O23: - | P23: 0.27 | R23: - | T23: - | V23: 13.600 | W23: 22.13 | X23: 11.73 | Y23: 0.100
B24: ХЛЕБ ПШЕНИНИЧНЫЙ | G24: 50 | H24: 2.280 | I24: 0.240 | K24: 14.760 | M24: 71 | O24: 0.033 | P24: - | R24: - | T24: 0.330 | V24: 6.000 | W24: 19.500 | X24: 4.200 | Y24: 0.330
B25: Итого: | H25: =SUM(H20:H24) -> 20.112 | I25: =SUM(I20:I24) -> 15.034 | K25: =SUM(K20:K24) -> 84.940 | M25: =SUM(M20:M24) -> 328 | O25: =SUM(O20:O24) -> 0.435 | P25: =SUM(P20:P24) -> 8.270 | R25: =SUM(R21:R24) -> 0 | T25: =SUM(T20:T24) -> 1.048 | V25: =SUM(V20:V24) -> 192.382 | W25: =SUM(W20:W24) -> 381.183 | X25: =SUM(X20:X24) -> 61.220 | Y25: =SUM(Y20:Y24) -> 1.831
B26: 4 день
A27: № 52 Сбор.рец. На прод-ию для обуч. Во всех образ.учреж-Дели 2015 | B27: СВЕКЛА ОТВАРНАЯ ПОРЦИЯМИ | G27: 60 | H27: 0.855 | I27: 3.653 | K27: 11.580 | M27: 56 | O27: 0.011 | P27: 7.700 | T27: 0.641 | V27: 121.090 | W27: 84.582 | X27: 12.540 | Y27: 0.198
A28: № 338 Сбор.рец. На прод-ию для обуч. Во всех образ.учреж-Дели 2015 | B28: ПЛОДЫ И ЯГОДЫ СВЕЖИЕ (АПЕЛЬСИНЫ) | G28: 100 | H28: 0.400 | I28: 0.400 | K28: 7.350 | M28: 47 | O28: 0.030 | P28: 8.000 | R28: - | T28: 0.200 | V28: 46.000 | W28: 11.000 | X28: 0.100 | Y28: 0.000
A29: № 256 Сбор.рец. На прод-ию для обуч. Во всех образ.учреж-Дели 2015 | B29: ФРИКАДЕЛЬКИ В СОУСЕ | G29: 70\50 | H29: 10.500 | I29: 11.030 | K29: 3.184 | M29: 196 | O29: 0.140 | P29: 3.890 | T29: 0.363 | V29: 66.806 | W29: 215.174 | X29: 30.164 | Y29: 1.430
A30: № 203 Сбор.рец. На прод-ию для обуч. Во всех образ.учреж-Дели 2015 | B30: МАКАРОННЫЕ ИЗДЕЛИЯ ОТВАРНЫЕ С МАСЛОМ | G30: 150/5 | H30: 5.100 | I30: 4.468 | K30: 28.500 | M30: 187 | O30: 0.087 | P30: - | R30: 0.100 | T30: 0.816 | V30: 16.457 | W30: 57.009 | X30: 8.479 | Y30: 0.869
A31: № 382 Сбор.рец. На прод-ию для обуч. Во всех образ.учреж-Дели 2015 | B31: КАКАО С МОЛОКОМ | G31: 200 | H31: 3.780 | I31: 0.670 | K31: 26.000 | M31: 125 | O31: 0.020 | P31: 1.330 | T31: 0.012 | V31: 133.330 | W31: 111.110 | X31: 25.560 | Y31: 2.000
B32: ХЛЕБ ПШЕНИНИЧНЫЙ | G32: 50 | H32: 2.280 | I32: 0.240 | K32: 14.760 | M32: 71 | O32: 0.033 | P32: - | R32: - | T32: 0.330 | V32: 6.000 | W32: 19.500 | X32: 4.200 | Y32: 0.330
B33: Итого: | H33: =SUM(H27:H32) -> 22.915 | I33: =SUM(I27:I32) -> 20.461 | K33: =SUM(K27:K32) -> 91.374 | M33: =SUM(M27:M32) -> 682 | O33: =SUM(O27:O32) -> 0.321 | P33: =SUM(P27:P32) -> 20.92 | R33: =SUM(R29:R32) -> 0.1 | T33: =SUM(T27:T32) -> 2.362 | V33: =SUM(V27:V32) -> 389.683 | W33: =SUM(W27:W32) -> 498.38 | X33: =SUM(X27:X32) -> 81.043 | Y33: =SUM(Y27:Y32) -> 4.8
B34: 5 день
A35: № 338 Сбор.рец. На прод-ию для обуч. Во всех образ.учреж-Дели 2015 | B35: ПЛОДЫ И ЯГОДЫ СВЕЖИЕ (БАНАНЫ) | G35: 100 | H35: 0.400 | I35: 0.400 | K35: 7.350 | M35: 47 | O35: 0.030 | P35: 8.000 | R35: - | T35: 0.200 | V35: 46.000 | W35: 11.000 | X35: 0.100 | Y35: 0.000
A36: № 268 Сбор.рец. На прод-ию для обуч. Во всех образ.учреж-Дели 2015 | B36: КОТЛЕТЫ ИЗ ПТИЦЫ | G36: 100 | H36: 9.660 | I36: 12.412 | K36: 9.450 | M36: 182 | O36: 0.166 | P36: 3.861 | R36: - | T36: 1.384 | V36: 54.974 | W36: 155.026 | X36: 21.930 | Y36: 1.678
A37: № 304 Сбор.рец. На прод-ию для обуч. Во всех образ.учреж-Дели 2015 | B37: РИС ОТВАРНОЙ | G37: 150 | H37: 3.834 | I37: 5.434 | K37: 29.600 | M37: 210 | O37: 0.044 | P37: - | R37: 0.180 | T37: 0.284 | V37: 11.460 | W37: 84.150 | X37: 13.330 | Y37: 0.010
A38: № 376 Сбор.рец. На прод-ию для обуч. Во всех образ.учреж-Дели 2015 | B38: ЧАЙ С САХАРОМ | G38: 200/15 | H38: 0.53 | I38: - | K38: 9.470 | M38: 40 | O38: - | P38: 0.27 | R38: - | T38: - | V38: 13.600 | W38: 22.13 | X38: 11.73 | Y38: 0.100
B39: ХЛЕБ ПШЕНИНИЧНЫЙ | G39: 50 | H39: 2.280 | I39: 0.240 | K39: 14.760 | M39: 71 | O39: 0.033 | P39: - | R39: - | T39: 0.330 | V39: 6.000 | W39: 19.500 | X39: 4.200 | Y39: 0.330
B40: Итого: | H40: =SUM(H35:H39) -> 16.704 | I40: =SUM(I35:I39) -> 18.486 | K40: =SUM(K35:K39) -> 70.630 | M40: =SUM(M35:M39) -> 550 | O40: =SUM(O35:O39) -> 0.27 | P40: =SUM(P35:P39) -> 12.131 | R40: =SUM(R36:R39) -> 0.18 | T40: =SUM(T35:T39) -> 2.198 | V40: =SUM(V35:V39) -> 132.034 | W40: =SUM(W35:W39) -> 291.81 | X40: =SUM(X35:X39) -> 51.290 | Y40: =SUM(Y35:Y39) -> 2.118
B41: 6 день
A42: № 338 Сбор.рец. На прод-ию для обуч. Во всех образ.учреж-Дели 2015 | B42: ПЛОДЫ И ЯГОДЫ СВЕЖИЕ (ГРУШЫ) | G42: 100 | H42: 0.400 | I42: 0.400 | K42: 7.350 | M42: 47 | O42: 0.030 | P42: 8.000 | R42: - | T42: 0.100 | V42: 16.000 | W42: 11.000 | X42: 9.000 | Y42: 0.030
A43: № 291 Сбор.рец. На прод-ию для обуч. Во всех образ.учреж-Дели -2015 | B43: РАГУ ИЗ ГОВЯДИНЫ | G43: 50/150 | H43: 14.510 | I43: 14.710 | K43: 28.340 | M43: 364 | O43: 0.210 | P43: 4.900 | R43: 0.100 | T43: 1.200 | V43: 83.070 | W43: 273.000 | X43: 40.450 | Y43: 1.900
A44: № 376 Сбор.рец. На прод-ию для обуч. Во всех образ.учреж-Дели 2015 | B44: КОМПОТ ИЗ СУХОФРУКТОВ | G44: 200 | H44: 0.53 | I44: - | K44: 9.470 | M44: 40 | O44: - | P44: 0.27 | R44: - | T44: - | V44: 13.600 | W44: 22.13 | X44: 11.73 | Y44: 0.100
B45: ХЛЕБ ПШЕНИНИЧНЫЙ | G45: 50 | H45: 2.280 | I45: 0.240 | K45: 14.760 | M45: 71 | O45: 0.033 | P45: - | R45: - | T45: 0.330 | V45: 6.000 | W45: 19.500 | X45: 4.200 | Y45: 0.330
B46: Итого: | H46: =SUM(H43:H45) -> 17.32 | I46: =SUM(I43:I45) -> 14.950 | K46: =SUM(K43:K45) -> 52.570 | M46: =SUM(M43:M45) -> 475 | O46: =SUM(O43:O45) -> 0.243 | P46: =SUM(P43:P45) -> 5.170 | R46: =SUM(R43:R45) -> 0.100 | T46: =SUM(T43:T45) -> 1.530 | V46: =SUM(V43:V45) -> 102.670 | W46: =SUM(W43:W45) -> 314.630 | X46: =SUM(X43:X45) -> 56.380 | Y46: =SUM(Y43:Y45) -> 2
